bitfinex-derivatives/quotes_SOLF0:USTF0_20250919
["timestamp","ask_amount","ask_price","bid_price","bid_amount"]
[1758297262609,2.98781389,237.88,237.85,6.58]
[1758297262906,117.73685214,237.89,237.85,6.58]
[1758297263107,2.98780489,237.88,237.85,6.58]
[1758297263302,4.44346837,237.97,237.84,102.74]
[1758297263506,9.81747863,237.96,237.87,6.58]
[1758297263710,2.98747863,237.95,237.89,1.47858957]
[1758297263909,2.98747863,237.94,237.9,109.3]
[1758297264104,2.98747863,237.93,237.9,109.3]
[1758297264306,6.83,237.96,237.9,109.3]
[1758297264813,10.6102,237.96,237.9,109.3]
[1758297267518,6.83,237.96,237.9,109.3]
[1758297268308,10.6102,237.96,237.9,109.3]
[1758297269911,10.6102,237.96,237.91,7.16]
[1758297269912,3.7805,237.94,237.91,7.16]
[1758297270430,3.7805,237.94,237.9,102.72]
[1758297270607,3.7805,237.94,237.91,7.16]
[1758297270808,3.7805,237.94,237.9,102.72]
[1758297271005,3.7805,237.94,237.91,7.16]
[1758297273202,3.7805,237.94,237.9,102.72]
[1758297273612,6.83,237.96,237.9,102.72]
[1758297274208,6.83,237.96,237.91,7.16]
[1758297274413,6.83,237.96,237.9,109.88]
[1758297275316,3.7801,237.97,237.91,7.16]
[1758297275515,11.76127655,238.0,237.91,7.16]
[1758297275705,11.0296,238.0,237.92,1.47858957]
[1758297275909,11.0296,238.0,237.93,7.16]
[1758297276306,11.0296,238.0,237.96,7.16]
[1758297276512,11.0296,238.0,237.97,109.82]
[1758297277111,3.7798,237.99,237.97,7.16]
[1758297277315,7.25,237.98,237.97,20.36]
[1758297278215,3.7798,237.99,237.97,20.36]
[1758297278617,3.7794,238.01,237.98,7.16]
[1758297278814,7.25,238.04,237.98,7.16]
[1758297279013,7.25,238.04,237.94,7.16]
[1758297279215,1.47858957,238.02,237.94,7.16]
[1758297279416,7.25,238.01,237.94,7.16]
[1758297279611,7.25,238.01,237.95,27.96]
[1758297280125,7.25,238.01,237.94,7.16]
[1758297280313,7.25,238.01,237.95,50.44]
[1758297280913,11.0298,237.99,237.95,57.6]
[1758297281415,7.25,237.99,237.95,57.6]
[1758297281910,11.03,237.97,237.93,81.06]
[1758297282314,3.78,237.97,237.93,73.9]
[1758297282512,7.25,238.01,237.93,81.06]
[1758297282712,7.25,238.01,237.94,7.16]
[1758297283220,3.7799,237.98,237.93,75.37858957]
[1758297283520,7.25,238.01,237.93,82.53858957]
[1758297283705,1.47858957,237.99,237.92,7.16]
[1758297283913,8.72858957,237.99,237.92,29.0]
[1758297284109,8.72858957,237.99,237.92,7.16]
[1758297284311,7.25,237.99,237.92,7.16]
[1758297285011,3.78,237.97,237.92,7.16]
[1758297286009,3.78,237.97,237.95,7.16]
[1758297286212,3.7795,238.01,237.93,1.47858957]
[1758297286412,7.25,238.02,237.94,7.16]
[1758297286912,7.25,238.04,237.94,7.16]
[1758297287120,7.25,238.01,237.94,7.16]
[1758297287307,7.25,238.01,237.94,26.76]
[1758297288110,3.7803,237.96,237.94,26.76]
[1758297289119,3.7803,237.96,237.95,7.16]
[1758297289618,3.7803,237.96,237.94,19.6]
[1758297289819,3.7803,237.96,237.94,26.76]
[1758297290209,3.7803,237.96,237.95,7.16]
[1758297291621,3.7805,237.94,237.92,7.16]
[1758297292421,3.7805,237.94,237.89,1.47858957]
[1758297292620,3.7802,237.96,237.93,7.16]
[1758297292820,3.7802,237.96,237.92,1.47858957]
[1758297293417,3.7802,237.96,237.93,7.16]
[1758297293818,3.7802,237.96,237.92,1.47858957]
[1758297294621,3.7802,237.96,237.93,7.16]
[1758297295520,3.7802,237.96,237.92,1.47858957]
[1758297295919,3.7802,237.96,237.91,7.16]
[1758297297919,3.7799,237.98,237.91,7.16]
[1758297298726,7.25,238.02,237.91,7.16]
[1758297299926,3.7797,237.99,237.91,7.16]
[1758297300925,10.3797,237.99,237.92,39.5]
[1758297301329,3.78,237.98,237.92,65.56]
[1758297301726,3.78,237.98,237.91,100.12]
[1758297302129,6.6,237.99,237.91,100.12]
[1758297303733,3.7801,237.97,237.91,100.12]
[1758297304524,6.6,237.99,237.91,100.12]
[1758297305224,3.7799,237.98,237.91,100.12]
[1758297305930,6.6,237.99,237.91,100.12]
[1758297307030,6.6,237.99,237.91,109.76]
[1758297307730,6.6,237.99,237.92,6.87]
[1758297307932,3.78,237.98,237.92,6.87]
[1758297308530,6.6,237.99,237.92,6.87]
[1758297309335,3.7803,237.96,237.92,6.87]
[1758297309527,3.7803,237.96,237.92,102.6]
[1758297309742,3.7803,237.96,237.93,6.87]
[1758297310132,10.3803,237.96,237.93,6.87]
[1758297311633,10.3803,237.96,237.89,4.67004012]
[1758297311844,3.7803,237.96,237.9,15.16]
[1758297312034,3.7803,237.96,237.91,6.87]
[1758297312735,58.7966,237.99,237.91,6.87]
[1758297312936,6.6,237.95,237.87,6.87]
[1758297313540,3.7814,237.89,237.86,27.04]
[1758297313734,3.7814,237.89,237.87,6.87]
[1758297314439,3.7814,237.89,237.86,27.04]
[1758297314939,3.7814,237.89,237.87,6.87]
[1758297315440,3.7814,237.89,237.8,19.88457776]
[1758297315441,6.6,237.88,237.84,6.87]
[1758297315639,6.6,237.9,237.84,6.87]
[1758297315839,6.6,237.9,237.8,19.70702471]
[1758297316042,2.99125944,237.89,237.81,102.6]
[1758297316237,6.6,237.9,237.81,102.6]
[1758297316445,6.6,237.9,237.82,6.87]
[1758297316746,3.7811,237.91,237.82,6.87]
[1758297318239,6.6,238.0,237.85,2.30674916]
[1758297318433,6.6,237.98,237.86,6.87]
[1758297318631,58.8058,237.95,237.86,6.87]
[1758297318842,6.6,237.93,237.85,35.74]
[1758297319450,3.7811,237.9,237.86,6.87]
[1758297320346,3.7811,237.9,237.85,35.74]
[1758297320541,3.7811,237.9,237.86,6.87]
[1758297321248,3.7811,237.9,237.85,35.74]
[1758297321646,3.7811,237.9,237.86,6.87]
[1758297321845,10.3811,237.9,237.86,6.87]
[1758297322248,10.3811,237.9,237.85,35.74]
[1758297322448,3.7811,237.9,237.85,35.74]
[1758297322950,10.3811,237.9,237.86,6.87]
[1758297323350,10.3811,237.9,237.85,35.74]
[1758297323548,3.7811,237.9,237.85,35.74]
[1758297323749,10.3811,237.9,237.86,6.87]
[1758297324152,10.3811,237.9,237.85,35.74]
[1758297324352,10.3811,237.9,237.86,6.87]
[1758297324952,10.3811,237.9,237.85,35.74]
[1758297326053,10.3811,237.9,237.86,6.87]
[1758297326845,3.7811,237.9,237.86,6.87]
[1758297327052,6.6,237.89,237.86,6.87]
[1758297327755,3.7814,237.88,237.86,6.87]
[1758297328355,10.4514,237.88,237.85,35.74]
[1758297328653,10.4514,237.88,237.85,42.32]
[1758297329055,3.7811,237.91,237.85,42.32]
[1758297329757,10.4507,237.93,237.85,42.32]
[1758297330156,3.7812,237.9,237.85,42.32]
[1758297330450,3.7812,237.9,237.85,35.74]
[1758297330855,10.4512,237.9,237.86,6.58]
[1758297331056,6.67,237.89,237.86,6.58]
[1758297331249,3.7814,237.88,237.86,6.58]
[1758297331449,3.7814,237.88,237.84,96.56]
[1758297331651,3.7814,237.88,237.84,6.58]
[1758297331846,6.67,237.87,237.81,6.58]
[1758297332053,58.812,237.93,237.82,102.6]
[1758297332054,58.8158,237.91,237.82,102.6]
[1758297332257,6.67,237.9,237.82,102.6]
[1758297332554,58.8158,237.91,237.82,102.6]
[1758297332954,58.8158,237.91,237.78,6.58]
[1758297332955,58.8256,237.87,237.78,6.58]
[1758297333149,6.67,237.86,237.78,6.58]
[1758297333952,6.67,237.85,237.78,6.58]
[1758297334254,6.67,237.85,237.77,102.6]
[1758297335654,3.7825,237.82,237.77,102.6]
[1758297335851,6.67,237.85,237.78,6.58]
[1758297336652,6.67,237.85,237.76,317.66]
[1758297336653,3.7828,237.8,237.76,324.24]
[1758297336957,6.67,237.79,237.77,102.6]
[1758297337557,3.7828,237.8,237.77,109.18]
[1758297337754,3.7828,237.8,237.78,6.58]
[1758297338161,6.67,237.83,237.77,102.6]
[1758297338162,3.7824,237.82,237.77,102.6]
[1758297338456,3.7824,237.82,237.78,6.58]
[1758297338658,3.7824,237.82,237.77,102.6]
[1758297338857,3.7824,237.82,237.78,6.58]
[1758297339258,3.7821,237.84,237.78,6.58]
[1758297339461,6.67,237.87,237.78,6.58]
[1758297340156,3.7824,237.82,237.77,102.6]
[1758297340361,3.7824,237.82,237.78,6.58]
[1758297340661,3.7824,237.82,237.77,102.6]
[1758297341163,6.67,237.84,237.76,317.66]
[1758297341363,58.8309,237.85,237.77,102.6]
[1758297341562,3.7829,237.8,237.77,102.6]
[1758297341963,3.7829,237.8,237.78,6.58]
[1758297343762,3.783,237.78,237.77,102.6]
[1758297344461,6.67,237.86,237.77,109.18]
[1758297345760,3.7825,237.82,237.77,102.6]
[1758297346156,3.7825,237.82,237.78,6.58]
[1758297347069,3.7825,237.82,237.77,102.6]
[1758297347567,6.67,237.86,237.78,6.58]
[1758297347760,6.67,237.91,237.78,6.58]
[1758297349875,3.782,237.85,237.78,6.58]
[1758297351662,3.7816,237.87,237.78,6.58]
[1758297355869,58.8199,237.9,237.78,6.58]
[1758297356075,6.67,237.89,237.78,6.58]
[1758297356275,58.8232,237.88,237.78,6.58]
[1758297356581,10.4525,237.82,237.79,102.6]
[1758297356877,6.67,237.85,237.8,102.6]
[1758297357271,3.7825,237.81,237.8,102.6]
[1758297358379,3.7823,237.83,237.8,102.6]
[1758297358580,10.4223,237.83,237.8,102.6]
[1758297359472,6.64,237.82,237.8,102.6]
[1758297359673,10.4226,237.82,237.8,102.6]
[1758297360478,8.11839845,237.85,237.77,7.07]
[1758297360671,6.64,237.84,237.78,102.6]
[1758297361078,10.4229,237.8,237.78,102.6]
[1758297361274,65.482,237.81,237.76,317.66]
[1758297361474,6.64,237.77,237.68,7.07]
[1758297361675,3.7841,237.72,237.7,7.07]
[1758297362277,3.7838,237.74,237.7,7.07]
[1758297362475,6.64,237.77,237.7,7.07]
[1758297363475,3.7839,237.74,237.7,7.07]
[1758297363680,6.64,237.77,237.69,102.6]
[1758297363681,1.47839845,237.78,237.69,102.6]
[1758297363881,6.64,237.77,237.69,102.6]
[1758297364779,3.784,237.73,237.69,102.6]
[1758297364978,3.784,237.73,237.69,109.67]
[1758297365179,3.784,237.73,237.7,7.07]
[1758297365981,10.424,237.73,237.7,7.07]
[1758297366475,3.784,237.73,237.7,7.07]
[1758297367681,3.7842,237.72,237.7,7.07]
[1758297373685,6.64,237.74,237.7,7.07]
[1758297374591,10.4239,237.74,237.7,7.07]
[1758297374790,6.64,237.8,237.7,7.07]
[1758297374987,8.11839845,237.8,237.7,7.07]
[1758297375586,3.7837,237.74,237.7,7.07]
[1758297375782,3.7837,237.74,237.67,1.47839845]
[1758297375783,6.64,237.76,237.67,8.54839845]
[1758297375988,6.64,237.76,237.68,109.69]
[1758297376291,3.784,237.73,237.69,7.07]
[1758297376684,3.784,237.73,237.68,102.62]
[1758297376878,3.784,237.73,237.69,7.07]
[1758297377084,3.784,237.73,237.68,102.62]
[1758297377280,3.784,237.73,237.69,7.07]
[1758297377486,3.784,237.73,237.68,102.62]
[1758297377786,3.784,237.73,237.69,1.47839845]
[1758297378194,3.784,237.73,237.7,7.07]
[1758297378393,3.7842,237.72,237.7,7.07]
[1758297379690,3.7838,237.74,237.7,7.07]
[1758297380092,3.7838,237.74,237.69,1.47839845]
[1758297380792,3.7838,237.74,237.7,7.07]
[1758297380992,3.784,237.73,237.7,7.07]
[1758297381199,3.784,237.73,237.69,1.47839845]
[1758297381498,3.784,237.73,237.68,102.62]
[1758297381798,3.784,237.73,237.69,1.47839845]
[1758297382895,3.784,237.73,237.7,7.07]
[1758297383097,3.784,237.73,237.69,1.47839845]
[1758297383297,3.784,237.73,237.7,7.07]
[1758297384099,3.784,237.73,237.69,1.47839845]
[1758297384302,3.784,237.73,237.7,7.07]
[1758297384500,3.784,237.73,237.69,1.47839845]
[1758297384693,3.784,237.73,237.7,7.07]
[1758297384995,3.784,237.73,237.69,1.47839845]
[1758297385395,3.784,237.73,237.7,7.07]
[1758297385800,3.784,237.73,237.69,1.47839845]
[1758297386004,10.4235,237.76,237.7,7.07]
[1758297386496,3.7838,237.74,237.7,7.07]
[1758297386697,6.64,237.76,237.7,7.07]
[1758297387297,3.784,237.73,237.7,7.07]
[1758297388303,3.784,237.73,237.7,7.02]
[1758297388699,3.784,237.73,237.69,1.47839845]
[1758297388901,10.4236,237.76,237.7,7.02]
[1758297390104,6.64,237.76,237.7,7.02]
[1758297390306,6.79,237.81,237.72,8.49839845]
[1758297390506,6.79,237.81,237.73,102.64]
[1758297390707,3.7831,237.79,237.73,102.64]
[1758297391206,6.79,237.81,237.73,102.64]
[1758297391407,6.79,237.77,237.73,102.64]
[1758297391600,6.79,237.77,237.74,7.02]
[1758297392209,3.7834,237.77,237.73,102.64]
[1758297392407,6.79,237.76,237.73,102.64]
[1758297392801,6.79,237.76,237.73,109.66]
[1758297394102,6.79,237.75,237.73,109.66]
[1758297394602,6.79,237.75,237.73,102.64]
[1758297397406,6.79,237.75,237.73,109.66]
[1758297397806,3.7835,237.76,237.74,7.02]
[1758297398204,3.7831,237.78,237.74,7.02]
[1758297398404,10.5731,237.78,237.74,7.02]
[1758297398914,3.7831,237.78,237.74,1.47839845]
[1758297399319,3.7831,237.78,237.75,7.02]
[1758297399519,3.7831,237.78,237.74,1.47839845]
[1758297399722,3.7831,237.78,237.75,7.02]
[1758297400115,3.7831,237.78,237.74,1.47839845]
[1758297400314,3.7831,237.78,237.75,7.02]
[1758297401120,3.7831,237.78,237.74,1.47839845]
[1758297401817,3.7831,237.78,237.75,7.02]
[1758297402019,3.7831,237.78,237.74,1.47839845]
[1758297402424,3.7831,237.78,237.75,7.02]
[1758297403022,3.7831,237.78,237.73,102.64]
[1758297403214,3.7831,237.78,237.74,1.47839845]
[1758297403419,3.7831,237.78,237.75,7.02]
[1758297403724,3.7831,237.78,237.74,1.47839845]
[1758297403920,3.7831,237.78,237.75,7.02]
[1758297404831,3.7831,237.78,237.74,1.47839845]
[1758297405524,6.79,237.84,237.78,7.02]
[1758297405825,63.25856837,237.92,237.8,7.02]
[1758297405826,6.79,237.89,237.8,7.02]
[1758297406023,3.7823,237.84,237.8,7.02]
[1758297406222,6.79,237.83,237.8,7.02]
[1758297407924,10.5724,237.83,237.8,7.02]
[1758297408725,10.5726,237.82,237.8,7.02]
[1758297408925,6.79,237.81,237.79,102.62]
[1758297409321,10.5727,237.81,237.79,102.62]
[1758297410531,6.79,237.8,237.79,102.62]
[1758297410732,3.7827,237.81,237.79,102.62]
[1758297412030,3.7827,237.81,237.79,109.64]
[1758297414541,3.7827,237.81,237.8,7.02]
[1758297428039,3.7827,237.81,237.79,102.62]
[1758297428237,3.7827,237.81,237.8,7.24]
[1758297429238,3.7823,237.83,237.8,7.24]
[1758297429435,10.4923,237.83,237.8,7.24]
[1758297430935,10.4923,237.83,237.79,102.62]
[1758297431139,10.4923,237.83,237.8,7.24]
[1758297431645,3.7823,237.83,237.79,102.62]
[1758297431840,3.7823,237.83,237.8,7.24]
[1758297432346,10.4923,237.83,237.8,7.24]
[1758297433745,3.7826,237.82,237.8,7.24]
[1758297434242,10.4926,237.82,237.8,7.24]
[1758297439549,10.4926,237.82,237.81,102.56]
[1758297440557,3.7821,237.85,237.81,102.56]
[1758297440754,6.71,237.84,237.82,7.24]
[1758297441346,10.4923,237.84,237.82,7.24]
[1758297441552,58.8252,237.88,237.81,102.56]
[1758297441750,2.96595748,237.87,237.81,102.56]
[1758297441947,2.96595748,237.86,237.81,102.56]
[1758297442149,10.4925,237.82,237.81,102.56]
[1758297445042,3.7825,237.82,237.81,102.56]
[1758297445253,3.7825,237.82,237.81,109.8]
[1758297450560,3.7823,237.84,237.81,102.56]
[1758297450957,3.7823,237.84,237.82,7.09]
[1758297451554,3.7823,237.84,237.81,102.56]
[1758297451754,3.7823,237.84,237.82,7.09]
[1758297451957,3.7823,237.84,237.81,102.56]
[1758297452261,3.7825,237.83,237.82,7.09]
[1758297457662,7.22,237.82,237.81,102.56]
[1758297457859,3.783,237.8,237.74,7.09]
[1758297458058,3.783,237.8,237.75,102.54]
[1758297458256,3.783,237.8,237.76,7.09]
[1758297458457,3.783,237.8,237.75,102.54]
[1758297459158,3.7826,237.82,237.76,7.09]
[1758297459463,58.8268,237.88,237.77,102.52]
[1758297459464,7.22,237.83,237.77,102.52]
[1758297459764,2.96697617,237.82,237.78,7.09]
[1758297459966,3.7828,237.81,237.77,102.52]
[1758297460563,3.7828,237.81,237.78,7.09]
[1758297460967,3.7828,237.81,237.77,102.52]
[1758297461770,3.7828,237.81,237.78,7.09]
[1758297461968,3.7828,237.81,237.77,102.52]
[1758297463067,3.7828,237.81,237.78,7.09]
[1758297463464,3.7828,237.81,237.77,102.52]
[1758297463962,3.7828,237.81,237.78,7.09]
[1758297464167,3.7828,237.81,237.77,102.52]
[1758297464573,3.7828,237.81,237.78,7.09]
[1758297464869,3.7828,237.81,237.77,102.52]
[1758297465062,3.7828,237.81,237.78,7.09]
[1758297465462,3.7828,237.81,237.77,102.52]
[1758297465865,3.7828,237.81,237.78,7.09]
[1758297466463,3.7828,237.81,237.77,102.52]
[1758297467269,3.7828,237.81,237.78,7.09]
[1758297467463,3.7828,237.81,237.77,102.52]
[1758297467669,3.7828,237.81,237.78,7.09]
[1758297467865,3.7828,237.81,237.77,102.52]
[1758297468464,3.7828,237.81,237.78,7.09]
[1758297468670,3.7825,237.83,237.77,102.52]
[1758297468869,7.22,237.87,237.78,7.09]
[1758297469076,7.22,237.85,237.79,102.52]
[1758297469271,7.22,237.83,237.8,7.09]
[1758297469477,7.22,237.83,237.81,102.52]
[1758297469777,3.7827,237.82,237.81,102.52]
[1758297470581,3.7827,237.82,237.81,109.61]
[1758297470780,3.7827,237.82,237.81,7.09]
[1758297470981,3.7827,237.82,237.81,109.61]
[1758297472682,7.22,237.83,237.81,109.61]
[1758297473783,11.0025,237.83,237.81,109.61]
[1758297478690,3.7825,237.83,237.82,6.63]
[1758297480492,3.7825,237.83,237.82,109.13]
[1758297481698,7.74197665,237.89,237.83,6.63]
[1758297481887,2.96246634,237.88,237.82,102.5]
[1758297482089,7.74197665,237.89,237.83,6.63]
[1758297482291,2.96205395,237.88,237.83,6.63]
[1758297482495,3.782,237.86,237.83,6.63]
[1758297482695,7.74197665,237.89,237.82,102.5]
[1758297482893,2.96129933,237.88,237.83,6.63]
[1758297483092,3.7824,237.84,237.82,102.5]
[1758297483295,3.7824,237.84,237.83,6.63]
[1758297484697,3.7824,237.84,237.83,109.11]
[1758297489600,3.7819,237.86,237.83,102.48]
[1758297489896,3.7819,237.86,237.84,102.48]
[1758297490095,3.7819,237.86,237.85,109.11]
[1758297491200,112.28378002,237.91,237.86,6.63]
[1758297491391,3.7812,237.91,237.87,102.48]
[1758297491595,3.7812,237.91,237.88,6.63]
[1758297491792,3.7812,237.91,237.9,6.63]
[1758297491992,3.7812,237.91,237.9,109.11]
[1758297494000,3.7812,237.91,237.9,109.09]
[1758297494203,10.7912,237.91,237.9,102.46]
[1758297495399,3.7812,237.91,237.9,109.09]
[1758297502803,3.782,237.86,237.83,1.47819761]
[1758297503199,7.01,237.91,237.84,34.92]
[1758297503200,65.8348,237.89,237.84,34.92]
[1758297503403,3.7819,237.86,237.85,34.92]
[1758297504508,3.7822,237.84,237.8,1.47819761]
[1758297504810,3.7822,237.84,237.81,57.98]
[1758297505010,7.01,237.88,237.81,6.07]
[1758297505205,7.01,237.88,237.82,32.36]
[1758297505802,7.01,237.88,237.83,6.07]
[1758297506205,7.01,237.88,237.82,32.36]
[1758297506407,7.01,237.88,237.83,6.07]
[1758297506606,7.01,237.88,237.82,32.36]
[1758297506809,3.7824,237.84,237.83,6.07]
[1758297507406,3.7826,237.82,237.79,6.07]
[1758297507608,3.7826,237.82,237.8,72.34]
[1758297507807,3.7826,237.82,237.81,6.07]
[1758297510506,3.7826,237.82,237.81,108.51]
[1758297510908,3.7832,237.78,237.77,10.77201541]
[1758297511214,3.7832,237.78,237.77,108.52]
[1758297514209,3.7827,237.82,237.77,102.44]
[1758297514409,7.0,237.83,237.77,102.44]
[1758297514605,7.0,237.84,237.77,108.52]
[1758297514811,3.783,237.8,237.78,6.08]
[1758297515113,3.783,237.8,237.77,102.44]
[1758297515314,3.783,237.8,237.78,6.08]
[1758297515515,3.783,237.8,237.77,102.44]
[1758297515715,3.783,237.8,237.78,6.08]
[1758297516107,3.783,237.8,237.77,102.44]
[1758297516308,3.783,237.8,237.78,6.08]
[1758297516720,3.783,237.8,237.77,102.44]
[1758297517320,3.783,237.8,237.78,6.08]
[1758297517720,3.783,237.8,237.77,102.44]
[1758297518015,3.783,237.8,237.78,6.08]
[1758297518216,3.783,237.8,237.77,102.44]
[1758297518819,3.783,237.8,237.78,6.08]
[1758297519018,3.783,237.8,237.77,102.44]
[1758297519219,3.7831,237.79,237.78,6.08]
[1758297520422,3.7831,237.79,237.78,108.52]
[1758297523522,3.7833,237.78,237.73,6.08]
[1758297523721,3.7833,237.78,237.75,6.08]
[1758297524018,7.0,237.81,237.75,6.08]
[1758297524725,7.0,237.81,237.76,102.42]
[1758297524922,60.31439761,237.84,237.76,102.42]
[1758297524923,7.0,237.83,237.76,102.42]
[1758297525316,58.8431,237.81,237.75,6.08]
[1758297525520,58.8431,237.81,237.76,102.42]
[1758297525521,7.0,237.8,237.76,102.42]
[1758297525715,7.0,237.8,237.72,6.08]
[1758297525716,7.0,237.8,237.77,102.42]
[1758297525921,7.0,237.8,237.76,102.42]
[1758297526315,60.32129761,237.81,237.76,102.42]
[1758297526716,7.0,237.8,237.76,102.42]
[1758297527428,60.32129761,237.81,237.76,102.42]
[1758297527826,3.7833,237.77,237.76,102.42]
[1758297528029,10.7833,237.77,237.76,96.0075]
[1758297528819,3.7841,237.72,237.71,6.08]
[1758297529029,3.7841,237.72,237.71,108.5]
[1758297530125,3.7841,237.72,237.71,6.08]
[1758297530323,3.7841,237.72,237.71,108.5]
[1758297536633,3.7838,237.74,237.72,6.08]
[1758297536826,3.7838,237.74,237.71,102.42]
[1758297536827,3.7838,237.74,237.73,108.5]
[1758297541132,3.7843,237.71,237.63,12.47788524]
[1758297541334,3.7843,237.71,237.65,6.08]
[1758297541534,3.7843,237.71,237.67,6.08]
[1758297541840,3.7843,237.71,237.68,102.42]
[1758297542040,3.7843,237.71,237.7,6.08]
[1758297542344,3.784,237.73,237.7,6.08]
[1758297542542,3.784,237.73,237.72,6.08]
[1758297542842,3.7837,237.75,237.71,102.42]
[1758297543041,2.31127287,237.8,237.72,6.08]
[1758297543234,65.7384,237.79,237.73,102.42]
[1758297543437,3.7839,237.74,237.72,6.08]
[1758297543636,3.7839,237.74,237.73,102.42]
[1758297544242,10.6739,237.74,237.73,102.42]
[1758297545443,3.7843,237.71,237.7,6.08]
[1758297545640,3.7843,237.71,237.7,53.56]
[1758297547546,6.89,237.74,237.71,6.08]
[1758297547741,6.89,237.74,237.7,47.48]
[1758297548047,6.89,237.74,237.71,6.08]
[1758297548239,10.6742,237.72,237.7,47.48]
[1758297548444,10.6742,237.72,237.7,53.56]
[1758297548636,58.8686,237.71,237.63,12.89574158]
[1758297548841,6.89,237.68,237.59,6.08]
[1758297549145,6.89,237.68,237.61,108.5]
[1758297549742,3.7851,237.66,237.61,108.5]
[1758297549939,10.6751,237.66,237.61,102.42]
[1758297550141,6.89,237.66,237.61,102.42]
[1758297550336,6.89,237.66,237.62,6.08]
[1758297551446,6.89,237.66,237.62,102.42]
[1758297551646,6.89,237.64,237.51,6.08]
[1758297551843,6.89,237.63,237.53,6.08]
[1758297552245,6.89,237.63,237.54,102.42]
[1758297552446,6.89,237.63,237.55,6.08]
[1758297552644,3.7863,237.59,237.48,3.7879]
[1758297552848,3.7863,237.59,237.5,6.08]
[1758297553045,6.89,237.61,237.5,6.08]
[1758297553245,6.89,237.61,237.52,6.08]
[1758297553950,6.89,237.61,237.53,32.82]
[1758297554450,6.89,237.61,237.54,6.08]
[1758297554647,10.676,237.61,237.54,6.08]
[1758297554845,6.89,237.61,237.54,6.08]
[1758297555348,6.89,237.61,237.54,38.04]
[1758297555543,3.7865,237.57,237.54,38.04]
[1758297556243,3.7865,237.57,237.55,6.08]
[1758297557050,3.7865,237.57,237.53,73.18]
[1758297557248,10.6765,237.57,237.54,6.08]
[1758297557948,6.89,237.57,237.54,6.08]
[1758297558141,6.89,237.61,237.53,73.18]
[1758297559947,3.7864,237.58,237.54,6.08]
[1758297560352,3.7864,237.58,237.53,67.1]
[1758297560555,3.7864,237.58,237.54,6.08]
[1758297561253,3.7864,237.58,237.53,67.1]
[1758297561453,3.7864,237.58,237.54,6.08]